[Event "*** Titled Tuesday Blitz"]
[Site "Chess.com"]
[Date "2020.11.10"]
[Round "10"]
[White "kasparicy"]
[Black "nochewycandy"]
[Result "0-1"]
[WhiteElo "2395"]
[BlackElo "2530"]
[TimeControl "180+1"]
[EndTime "12:02:29 PST"]
[Termination "nochewycandy won by resignation"]

1. e4 {[%clk 0:02:59.3]} 1... g6 {[%clk 0:02:54.4]} 2. d4 {[%clk 0:02:59.1]}
2... Bg7 {[%clk 0:02:55.3]} 3. Nc3 {[%clk 0:02:59.5]} 3... d6 {[%clk 0:02:54.2]}
4. Be2 {[%clk 0:03:00.1]} 4... a6 {[%clk 0:02:54.7]} 5. h4 {[%clk 0:03:00.6]}
5... Nf6 {[%clk 0:02:51.8]} 6. h5 {[%clk 0:02:59.5]} 6... c5 {[%clk 0:02:50.6]}
7. Be3 {[%clk 0:02:58]} 7... gxh5 {[%clk 0:02:49.5]} 8. dxc5 {[%clk 0:02:55.2]}
8... Qa5 {[%clk 0:02:48.7]} 9. Qd2 {[%clk 0:02:54.7]} 9... dxc5 {[%clk
0:02:41.8]} 10. O-O-O {[%clk 0:02:54.1]} 10... Nc6 {[%clk 0:02:41.1]} 11. Kb1
{[%clk 0:02:52.7]} 11... Be6 {[%clk 0:02:39.9]} 12. f3 {[%clk 0:02:45.3]} 12...
Nd7 {[%clk 0:02:32.7]} 13. Nd5 {[%clk 0:02:44.2]} 13... Qxd2 {[%clk 0:02:31.5]}
14. Nc7+ {[%clk 0:02:40.2]} 14... Kd8 {[%clk 0:02:29.8]} 15. Nxe6+ {[%clk
0:02:40.5]} 15... fxe6 {[%clk 0:02:30.7]} 16. Rxd2 {[%clk 0:02:41.2]} 16... Kc7
{[%clk 0:02:30.3]} 17. Rxh5 {[%clk 0:02:39.3]} 17... b6 {[%clk 0:02:28.1]} 18.
Nh3 {[%clk 0:02:36.4]} 18... h6 {[%clk 0:02:18.5]} 19. Nf4 {[%clk 0:02:35.2]}
19... Nf8 {[%clk 0:02:17.9]} 20. Bc4 {[%clk 0:02:31.3]} 20... Bd4 {[%clk
0:02:10.1]} 21. Bxd4 {[%clk 0:02:27.2]} 21... Nxd4 {[%clk 0:02:09.8]} 22. c3
{[%clk 0:02:26.8]} 22... Nc6 {[%clk 0:02:08.9]} 23. Bxe6 {[%clk 0:02:22.6]}
23... Rd8 {[%clk 0:02:06.3]} 24. Nd5+ {[%clk 0:02:20.9]} 24... Kb7 {[%clk
0:02:02.8]} 25. Bh3 {[%clk 0:02:05.4]} 25... e6 {[%clk 0:02:01.8]} 26. c4 {[%clk
0:02:04.6]} 26... exd5 {[%clk 0:02:00.8]} 27. cxd5 {[%clk 0:02:05.5]} 27... Nd4
{[%clk 0:02:00.9]} 28. b4 {[%clk 0:01:50.2]} 28... Ng6 {[%clk 0:01:59.3]} 29.
bxc5 {[%clk 0:01:48.8]} 29... bxc5 {[%clk 0:02:00.2]} 30. d6 {[%clk 0:01:46.1]}
30... Kc6 {[%clk 0:01:53.3]} 31. d7 {[%clk 0:01:45.4]} 31... Nf4 {[%clk
0:01:50.6]} 32. Rh4 {[%clk 0:01:28.5]} 32... Nxh3 {[%clk 0:01:49.6]} 33. Rxh3
{[%clk 0:01:29.4]} 33... Rxd7 {[%clk 0:01:48.9]} 34. f4 {[%clk 0:01:26.4]} 34...
Re7 {[%clk 0:01:32.4]} 35. e5 {[%clk 0:01:26.5]} 35... Kd5 {[%clk 0:01:32]} 36.
g3 {[%clk 0:01:26.2]} 36... Rb7+ {[%clk 0:01:29.5]} 37. Kc1 {[%clk 0:01:25.6]}
37... Rhb8 {[%clk 0:01:29.1]} 38. Rdh2 {[%clk 0:01:25.9]} 38... Rb1+ {[%clk
0:01:27.6]} 39. Kd2 {[%clk 0:01:26.2]} 39... R8b2+ {[%clk 0:01:28.2]} 40. Kc3
{[%clk 0:01:25.6]} 40... Rb4 {[%clk 0:01:06.7]} 41. Rxh6 {[%clk 0:01:18.2]}
41... Rc1+ {[%clk 0:01:07]} 42. Kd3 {[%clk 0:01:16.5]} 42... Rd1+ {[%clk
0:01:07.1]} 43. Kc3 {[%clk 0:01:16]} 43... Rc4+ {[%clk 0:01:02.2]} 44. Kb2
{[%clk 0:01:15.6]} 44... Rb4+ {[%clk 0:00:59.6]} 45. Kc3 {[%clk 0:01:10.7]}
45... Nf5 {[%clk 0:00:48.5]} 46. Rh8 {[%clk 0:01:07.1]} 46... Rc1+ {[%clk
0:00:42.4]} 47. Kd2 {[%clk 0:01:06.8]} 47... Ra1 {[%clk 0:00:38.7]} 48. Kc3
{[%clk 0:01:05.7]} 48... Rc4+ {[%clk 0:00:37.3]} 49. Kb2 {[%clk 0:01:04.2]}
49... Rg1 {[%clk 0:00:32.2]} 50. Rd2+ {[%clk 0:00:58.6]} 50... Ke4 {[%clk
0:00:31.5]} 51. e6 {[%clk 0:00:57.7]} 51... Rxg3 {[%clk 0:00:30.2]} 52. e7
{[%clk 0:00:48.3]} 52... Nxe7 {[%clk 0:00:29.7]} 53. Re8 {[%clk 0:00:47.6]}
53... Rb4+ {[%clk 0:00:30.2]} 54. Kc2 {[%clk 0:00:45.6]} 54... Rb7 {[%clk
0:00:29.9]} 55. Re2+ {[%clk 0:00:42.3]} 55... Re3 {[%clk 0:00:29.9]} 56. Rxe3+
{[%clk 0:00:42.7]} 56... Kxe3 {[%clk 0:00:30.2]} 57. f5 {[%clk 0:00:43.6]} 57...
Kf4 {[%clk 0:00:28.7]} 58. f6 {[%clk 0:00:43.9]} 58... Nd5 {[%clk 0:00:28.8]}
59. Re6 {[%clk 0:00:39.1]} 59... Kf5 {[%clk 0:00:27.3]} 60. Rxa6 {[%clk
0:00:39]} 60... Nb4+ {[%clk 0:00:27.7]} 61. Kc3 {[%clk 0:00:37.8]} 61... Nxa6
{[%clk 0:00:28.6]} 62. Kc4 {[%clk 0:00:38.2]} 62... Kxf6 {[%clk 0:00:28.7]} 0-1

[Event "*** Titled Tuesday Blitz"]
[Site "Chess.com"]
[Date "2020.11.10"]
[Round "10"]
[White "AntonovaNadezhda"]
[Black "LittleMyMoomin"]
[Result "0-1"]
[WhiteElo "2109"]
[BlackElo "1862"]
[TimeControl "180+1"]
[EndTime "12:02:30 PST"]
[Termination "LittleMyMoomin won by checkmate"]

1. d4 {[%clk 0:03:00.9]} 1... Nf6 {[%clk 0:02:55.1]} 2. Nf3 {[%clk 0:03:01.8]}
2... e6 {[%clk 0:02:54.8]} 3. e3 {[%clk 0:03:01.2]} 3... d5 {[%clk 0:02:54.8]}
4. Nbd2 {[%clk 0:03:01.3]} 4... Bd6 {[%clk 0:02:55.1]} 5. Bd3 {[%clk 0:03:01.1]}
5... b6 {[%clk 0:02:55.6]} 6. b3 {[%clk 0:03:01.5]} 6... a6 {[%clk 0:02:56]} 7.
Bb2 {[%clk 0:03:01.9]} 7... Bb7 {[%clk 0:02:56.5]} 8. O-O {[%clk 0:03:02.2]}
8... Nbd7 {[%clk 0:02:56.7]} 9. Ne5 {[%clk 0:03:02.1]} 9... Bxe5 {[%clk
0:02:53.4]} 10. dxe5 {[%clk 0:03:01.4]} 10... Ne4 {[%clk 0:02:53.7]} 11. f3
{[%clk 0:03:00.1]} 11... Nxd2 {[%clk 0:02:51.6]} 12. Qxd2 {[%clk 0:02:59.4]}
12... O-O {[%clk 0:02:50.6]} 13. f4 {[%clk 0:02:56.3]} 13... c5 {[%clk
0:02:46.9]} 14. f5 {[%clk 0:02:49]} 14... exf5 {[%clk 0:02:39]} 15. Rxf5 {[%clk
0:02:48.1]} 15... Qc7 {[%clk 0:02:38.8]} 16. c4 {[%clk 0:02:14.8]} 16... dxc4
{[%clk 0:02:31.1]} 17. Bxc4 {[%clk 0:02:05.9]} 17... b5 {[%clk 0:02:30.9]} 18.
e6 {[%clk 0:01:06.4]} 18... bxc4 {[%clk 0:02:22.7]} 19. exd7 {[%clk 0:01:03.5]}
19... cxb3 {[%clk 0:02:11.9]} 20. axb3 {[%clk 0:01:01.3]} 20... Rad8 {[%clk
0:02:10.2]} 21. Rd1 {[%clk 0:00:59]} 21... Qc6 {[%clk 0:01:56.4]} 22. Rg5 {[%clk
0:00:57.4]} 22... f6 {[%clk 0:01:45.6]} 23. Rd5 {[%clk 0:00:43.3]} 23... Rf7
{[%clk 0:01:44.2]} 24. e4 {[%clk 0:00:37.5]} 24... Qe6 {[%clk 0:01:42.5]} 25.
Rd6 {[%clk 0:00:23]} 25... Qxe4 {[%clk 0:01:39.9]} 26. Re1 {[%clk 0:00:20.4]}
26... Qg6 {[%clk 0:01:26.6]} 27. Re8+ {[%clk 0:00:19.5]} 27... Rf8 {[%clk
0:01:26.8]} 28. Re7 {[%clk 0:00:17.3]} 28... Qb1+ {[%clk 0:01:23.3]} 29. Kf2
{[%clk 0:00:15.3]} 29... Qf5+ {[%clk 0:01:23.1]} 30. Kg1 {[%clk 0:00:15]} 30...
c4 {[%clk 0:01:11.8]} 31. bxc4 {[%clk 0:00:13.8]} 31... Qc5+ {[%clk 0:01:01.2]}
32. Kh1 {[%clk 0:00:11.7]} 32... Qxc4 {[%clk 0:00:53.7]} 33. h3 {[%clk 0:00:11]}
33... Qc5 {[%clk 0:00:34.6]} 34. Kh2 {[%clk 0:00:11]} 34... a5 {[%clk
0:00:26.4]} 35. Bc3 {[%clk 0:00:10.9]} 35... a4 {[%clk 0:00:25.8]} 36. Ba1
{[%clk 0:00:09.6]} 36... a3 {[%clk 0:00:19.7]} 37. Rd3 {[%clk 0:00:09]} 37...
Qc7+ {[%clk 0:00:19.6]} 38. Kh1 {[%clk 0:00:07.7]} 38... a2 {[%clk 0:00:18]} 39.
Qd1 {[%clk 0:00:07.5]} 39... Qc6 {[%clk 0:00:14.9]} 40. Qb3+ {[%clk 0:00:07.2]}
40... Kh8 {[%clk 0:00:14.5]} 41. Qd1 {[%clk 0:00:07.5]} 41... Qxg2# {[%clk
0:00:14]} 0-1

[Event "*** Titled Tuesday Blitz"]
[Site "Chess.com"]
[Date "2020.11.10"]
[Round "10"]
[White "zala02"]
[Black "chessmachine14"]
[Result "1-0"]
[WhiteElo "2168"]
[BlackElo "2274"]
[TimeControl "180+1"]
[EndTime "12:02:31 PST"]
[Termination "zala02 won by checkmate"]

1. d4 {[%clk 0:03:00.9]} 1... Nf6 {[%clk 0:02:59.8]} 2. c4 {[%clk 0:03:00.7]}
2... g6 {[%clk 0:03:00.4]} 3. Nc3 {[%clk 0:03:00.5]} 3... Bg7 {[%clk 0:03:01.1]}
4. e4 {[%clk 0:03:00.6]} 4... O-O {[%clk 0:03:01.7]} 5. Nf3 {[%clk 0:03:01.1]}
5... d6 {[%clk 0:03:02.2]} 6. Be2 {[%clk 0:03:01.4]} 6... e5 {[%clk 0:03:02]} 7.
O-O {[%clk 0:03:01.2]} 7... Nc6 {[%clk 0:03:02.3]} 8. d5 {[%clk 0:03:01.1]} 8...
Ne7 {[%clk 0:03:02.6]} 9. b4 {[%clk 0:03:01.7]} 9... Nh5 {[%clk 0:02:48.8]} 10.
Re1 {[%clk 0:03:00.1]} 10... f5 {[%clk 0:02:48.4]} 11. Ng5 {[%clk 0:02:55.9]}
11... Nf6 {[%clk 0:02:41.8]} 12. Bf3 {[%clk 0:02:43.7]} 12... Kh8 {[%clk
0:02:41.6]} 13. a4 {[%clk 0:02:27]} 13... fxe4 {[%clk 0:02:41.1]} 14. Ncxe4
{[%clk 0:02:23.9]} 14... Nf5 {[%clk 0:02:38.8]} 15. Bb2 {[%clk 0:02:17.4]} 15...
Nd4 {[%clk 0:02:34.5]} 16. Bxd4 {[%clk 0:02:12]} 16... exd4 {[%clk 0:02:34.4]}
17. Ne6 {[%clk 0:02:08.4]} 17... Bxe6 {[%clk 0:02:33.5]} 18. dxe6 {[%clk
0:02:09.3]} 18... Nxe4 {[%clk 0:01:57.9]} 19. Bxe4 {[%clk 0:02:10.2]} 19... Qf6
{[%clk 0:01:57.4]} 20. Ra2 {[%clk 0:02:04.3]} 20... c6 {[%clk 0:01:57.3]} 21. b5
{[%clk 0:01:57]} 21... Qxe6 {[%clk 0:01:51.9]} 22. bxc6 {[%clk 0:01:45.5]} 22...
bxc6 {[%clk 0:01:48.9]} 23. Bxc6 {[%clk 0:01:37.8]} 23... Qxc4 {[%clk
0:01:47.7]} 24. Rc2 {[%clk 0:01:37.5]} 24... Qb4 {[%clk 0:01:27.5]} 25. Bxa8
{[%clk 0:01:36.6]} 25... d3 {[%clk 0:01:27.6]} 26. Rd2 {[%clk 0:01:19.6]} 26...
Bc3 {[%clk 0:01:25.9]} 27. Rxd3 {[%clk 0:01:19.4]} 27... Bxe1 {[%clk 0:01:25.3]}
28. Qa1+ {[%clk 0:01:17.8]} 28... Kg8 {[%clk 0:01:16.9]} 29. Bd5+ {[%clk
0:01:16.8]} 29... Rf7 {[%clk 0:01:12.9]} 30. Bxf7+ {[%clk 0:01:10.1]} 30... Kxf7
{[%clk 0:01:12.7]} 31. Rf3+ {[%clk 0:01:06]} 31... Kg8 {[%clk 0:01:11.5]} 32.
Qf6 {[%clk 0:00:59.4]} 32... d5 {[%clk 0:01:03.8]} 33. Qf7+ {[%clk 0:00:54.4]}
33... Kh8 {[%clk 0:01:03.2]} 34. Qxd5 {[%clk 0:00:30.8]} 34... Bc3 {[%clk
0:00:47.3]} 35. Qd8+ {[%clk 0:00:25.8]} 35... Kg7 {[%clk 0:00:46.9]} 36. Qc7+
{[%clk 0:00:25.5]} 36... Kh6 {[%clk 0:00:43.6]} 37. Rxc3 {[%clk 0:00:23.6]}
37... Qb1+ {[%clk 0:00:38.4]} 38. Rc1 {[%clk 0:00:23.6]} 38... Qe4 {[%clk
0:00:37.9]} 39. g3 {[%clk 0:00:20.4]} 39... Kh5 {[%clk 0:00:37]} 40. Qf4 {[%clk
0:00:19.8]} 40... Qxf4 {[%clk 0:00:29.8]} 41. gxf4 {[%clk 0:00:20.7]} 41... Kg4
{[%clk 0:00:30.6]} 42. Rc7 {[%clk 0:00:20.8]} 42... h5 {[%clk 0:00:30]} 43. Rxa7
{[%clk 0:00:21.7]} 43... h4 {[%clk 0:00:30]} 44. Rb7 {[%clk 0:00:20]} 44... g5
{[%clk 0:00:30.1]} 45. a5 {[%clk 0:00:20.4]} 45... gxf4 {[%clk 0:00:29.7]} 46.
a6 {[%clk 0:00:20.8]} 46... f3 {[%clk 0:00:29.9]} 47. a7 {[%clk 0:00:21.3]}
47... Kh3 {[%clk 0:00:30.2]} 48. a8=Q {[%clk 0:00:20.6]} 48... Kg4 {[%clk
0:00:30.4]} 49. Qc8+ {[%clk 0:00:20.6]} 49... Kf4 {[%clk 0:00:31]} 50. Qc4+
{[%clk 0:00:20.3]} 50... Kg5 {[%clk 0:00:31]} 51. Rb5+ {[%clk 0:00:20.3]} 51...
Kf6 {[%clk 0:00:31.9]} 52. Qa4 {[%clk 0:00:20.3]} 52... Kg7 {[%clk 0:00:32.8]}
53. Qa6 {[%clk 0:00:20.6]} 53... Kh8 {[%clk 0:00:32.6]} 54. Rb7 {[%clk
0:00:21.4]} 54... Kg8 {[%clk 0:00:32.5]} 55. Qa8# {[%clk 0:00:22]} 1-0

[Event "*** Titled Tuesday Blitz"]
[Site "Chess.com"]
[Date "2020.11.10"]
[Round "10"]
[White "Barmen_EV"]
[Black "Algeriano22"]
[Result "1-0"]
[WhiteElo "2461"]
[BlackElo "2686"]
[TimeControl "180+1"]
[EndTime "12:02:32 PST"]
[Termination "Barmen_EV won on time"]

1. d4 {[%clk 0:03:00.9]} 1... Nf6 {[%clk 0:02:59.9]} 2. c4 {[%clk 0:03:01.4]}
2... d6 {[%clk 0:03:00.2]} 3. Nc3 {[%clk 0:03:01.6]} 3... g6 {[%clk 0:03:00.5]}
4. e4 {[%clk 0:03:01.7]} 4... Bg7 {[%clk 0:03:00.9]} 5. f4 {[%clk 0:03:02.1]}
5... O-O {[%clk 0:02:56.2]} 6. Nf3 {[%clk 0:03:02.3]} 6... c5 {[%clk 0:02:53.9]}
7. d5 {[%clk 0:03:02.6]} 7... e6 {[%clk 0:02:54.4]} 8. Be2 {[%clk 0:03:02.7]}
8... exd5 {[%clk 0:02:52.4]} 9. cxd5 {[%clk 0:03:03.6]} 9... Re8 {[%clk
0:02:52.8]} 10. e5 {[%clk 0:03:04.5]} 10... dxe5 {[%clk 0:02:52.9]} 11. fxe5
{[%clk 0:03:05.3]} 11... Ng4 {[%clk 0:02:52.5]} 12. Bg5 {[%clk 0:03:06.2]} 12...
Qb6 {[%clk 0:02:51.6]} 13. O-O {[%clk 0:03:06.3]} 13... Nxe5 {[%clk 0:02:49.8]}
14. Nxe5 {[%clk 0:03:07.2]} 14... Bxe5 {[%clk 0:02:50]} 15. Bc4 {[%clk
0:03:06.8]} 15... Nd7 {[%clk 0:02:27.8]} 16. d6 {[%clk 0:03:01]} 16... Bd4+
{[%clk 0:02:27.7]} 17. Kh1 {[%clk 0:03:00.8]} 17... Ne5 {[%clk 0:02:27.8]} 18.
Nd5 {[%clk 0:02:57.8]} 18... Nxc4 {[%clk 0:01:25.6]} 19. Nxb6 {[%clk 0:02:57.2]}
19... axb6 {[%clk 0:01:26.2]} 20. Qf3 {[%clk 0:02:22.7]} 20... Nxd6 {[%clk
0:01:17.7]} 21. Bf6 {[%clk 0:02:07.2]} 21... Bf5 {[%clk 0:01:04.1]} 22. Bxd4
{[%clk 0:02:01.6]} 22... cxd4 {[%clk 0:01:05]} 23. Qd5 {[%clk 0:02:02.5]} 23...
Rad8 {[%clk 0:00:30.9]} 24. Qxd4 {[%clk 0:02:02.2]} 24... b5 {[%clk 0:00:31.4]}
25. Qb6 {[%clk 0:01:44.6]} 25... Bd3 {[%clk 0:00:21.5]} 26. Rfe1 {[%clk
0:01:34.5]} 26... Ne4 {[%clk 0:00:19.3]} 27. Qxb7 {[%clk 0:01:13.1]} 27... Re6
{[%clk 0:00:07.1]} 28. Kg1 {[%clk 0:01:06.5]} 28... h5 {[%clk 0:00:06.9]} 29.
Rad1 {[%clk 0:01:05.9]} 29... f5 {[%clk 0:00:05.5]} 30. b3 {[%clk 0:00:47.8]}
30... Red6 {[%clk 0:00:05.6]} 31. a4 {[%clk 0:00:41.5]} 31... bxa4 {[%clk
0:00:05.3]} 32. bxa4 {[%clk 0:00:42.4]} 32... R8d7 {[%clk 0:00:05.9]} 33. Qb3+
{[%clk 0:00:39]} 33... Kh7 {[%clk 0:00:06.1]} 34. a5 {[%clk 0:00:38.8]} 34... h4
{[%clk 0:00:04.2]} 35. Qb4 {[%clk 0:00:27.2]} 35... Kh6 {[%clk 0:00:03.7]} 36.
a6 {[%clk 0:00:19.6]} 36... Bxa6 {[%clk 0:00:02.6]} 37. Rxd6 {[%clk 0:00:18]}
1-0

[Event "*** Titled Tuesday Blitz"]
[Site "Chess.com"]
[Date "2020.11.10"]
[Round "10"]
[White "Sofiia_Hryzlova"]
[Black "blitzking1729"]
[Result "1/2-1/2"]
[WhiteElo "2329"]
[BlackElo "2539"]
[TimeControl "180+1"]
[EndTime "12:02:32 PST"]
[Termination "Game drawn by repetition"]

1. c4 {[%clk 0:03:00.9]} 1... e5 {[%clk 0:02:52.1]} 2. Nc3 {[%clk 0:02:58.7]}
2... d6 {[%clk 0:02:50.7]} 3. Nf3 {[%clk 0:02:54.7]} 3... f5 {[%clk 0:02:49.7]}
4. d4 {[%clk 0:02:53.4]} 4... e4 {[%clk 0:02:49.6]} 5. Ng5 {[%clk 0:02:53.2]}
5... Be7 {[%clk 0:02:48.7]} 6. Nh3 {[%clk 0:02:53.6]} 6... Nf6 {[%clk
0:02:48.1]} 7. Nf4 {[%clk 0:02:53.8]} 7... O-O {[%clk 0:02:47.5]} 8. e3 {[%clk
0:02:53.9]} 8... c6 {[%clk 0:02:47.6]} 9. Be2 {[%clk 0:02:49.7]} 9... Na6 {[%clk
0:02:47.6]} 10. a3 {[%clk 0:02:49]} 10... Nc7 {[%clk 0:02:48.1]} 11. b4 {[%clk
0:02:46.8]} 11... Ne6 {[%clk 0:02:48.3]} 12. d5 {[%clk 0:02:40.4]} 12... Nxf4
{[%clk 0:02:46.2]} 13. exf4 {[%clk 0:02:40.8]} 13... cxd5 {[%clk 0:02:45.2]} 14.
Nxd5 {[%clk 0:02:40.9]} 14... Be6 {[%clk 0:02:45.2]} 15. Nxe7+ {[%clk
0:02:36.8]} 15... Qxe7 {[%clk 0:02:45.6]} 16. Be3 {[%clk 0:02:33]} 16... b6
{[%clk 0:02:43.5]} 17. h3 {[%clk 0:02:31.9]} 17... Rfd8 {[%clk 0:02:42.9]} 18.
O-O {[%clk 0:02:26.1]} 18... d5 {[%clk 0:02:42.2]} 19. cxd5 {[%clk 0:02:18.7]}
19... Nxd5 {[%clk 0:02:40.9]} 20. Qe1 {[%clk 0:01:49.3]} 20... Nxe3 {[%clk
0:02:28.5]} 21. fxe3 {[%clk 0:01:50.2]} 21... Rac8 {[%clk 0:02:29]} 22. Rc1
{[%clk 0:01:39.1]} 22... Qf6 {[%clk 0:02:24.7]} 23. Ba6 {[%clk 0:01:36.8]} 23...
Rxc1 {[%clk 0:02:23.1]} 24. Qxc1 {[%clk 0:01:36]} 24... Qe7 {[%clk 0:02:18.8]}
25. Rd1 {[%clk 0:01:32.5]} 25... Kf7 {[%clk 0:02:16.8]} 26. Rd2 {[%clk
0:01:25.5]} 26... Rxd2 {[%clk 0:02:13]} 27. Qxd2 {[%clk 0:01:25]} 27... Qc7
{[%clk 0:02:12.2]} 28. Kf2 {[%clk 0:01:22.2]} 28... h6 {[%clk 0:02:06]} 29. Be2
{[%clk 0:01:18.9]} 29... g5 {[%clk 0:02:00.5]} 30. g3 {[%clk 0:01:12.5]} 30...
gxf4 {[%clk 0:01:59.2]} 31. gxf4 {[%clk 0:01:11.7]} 31... Qe7 {[%clk 0:01:59.1]}
32. Kg2 {[%clk 0:01:00.5]} 32... Kg6 {[%clk 0:01:52.3]} 33. Qd4 {[%clk 0:00:57]}
33... Qf6 {[%clk 0:01:48.7]} 34. Qd6 {[%clk 0:00:51.1]} 34... Bf7 {[%clk
0:01:25.7]} 35. Bh5+ {[%clk 0:00:34.3]} 35... Kg7 {[%clk 0:01:25.2]} 36. Qd7
{[%clk 0:00:34]} 36... Kf8 {[%clk 0:01:24.1]} 37. Qc8+ {[%clk 0:00:32.5]} 37...
Ke7 {[%clk 0:01:21.3]} 38. Qc7+ {[%clk 0:00:32]} 38... Kf8 {[%clk 0:01:20.8]}
39. Qc8+ {[%clk 0:00:31.8]} 39... Kg7 {[%clk 0:01:19.9]} 40. Qd7 {[%clk
0:00:32]} 40... Qb2+ {[%clk 0:00:56.7]} 41. Kg3 {[%clk 0:00:30.9]} 41... Qb3
{[%clk 0:00:51.6]} 42. Qxa7 {[%clk 0:00:17]} 42... Qxe3+ {[%clk 0:00:49.6]} 43.
Kg2 {[%clk 0:00:16.9]} 43... Qd2+ {[%clk 0:00:48.1]} 44. Kg3 {[%clk 0:00:16.5]}
44... Qe1+ {[%clk 0:00:40.4]} 45. Kg2 {[%clk 0:00:16.1]} 45... Qd2+ {[%clk
0:00:36.8]} 46. Kg3 {[%clk 0:00:15.7]} 46... Qd3+ {[%clk 0:00:33.7]} 47. Kg2
{[%clk 0:00:15.8]} 47... Qd2+ {[%clk 0:00:28.6]} 1/2-1/2

[Event "*** Titled Tuesday Blitz"]
[Site "Chess.com"]
[Date "2020.11.10"]
[Round "10"]
[White "Grandelicious"]
[Black "ShapkinAnatoliy"]
[Result "1-0"]
[WhiteElo "2810"]
[BlackElo "2642"]
[TimeControl "180+1"]
[EndTime "12:02:36 PST"]
[Termination "Grandelicious won on time"]

1. e4 {[%clk 0:03:00.9]} 1... e5 {[%clk 0:02:59.6]} 2. Nf3 {[%clk 0:03:01]} 2...
Nc6 {[%clk 0:03:00.2]} 3. d4 {[%clk 0:03:01.8]} 3... exd4 {[%clk 0:02:59.9]} 4.
Bc4 {[%clk 0:03:02.3]} 4... Nf6 {[%clk 0:02:59.6]} 5. e5 {[%clk 0:03:01.5]} 5...
d5 {[%clk 0:03:00.2]} 6. Bb5 {[%clk 0:03:01.8]} 6... Ne4 {[%clk 0:03:00.9]} 7.
Nxd4 {[%clk 0:03:01.9]} 7... Bd7 {[%clk 0:03:01.6]} 8. Bxc6 {[%clk 0:03:01.4]}
8... bxc6 {[%clk 0:03:02.5]} 9. O-O {[%clk 0:03:01.7]} 9... Be7 {[%clk
0:03:02.9]} 10. f3 {[%clk 0:02:51.7]} 10... Nc5 {[%clk 0:03:03.2]} 11. f4 {[%clk
0:02:51.9]} 11... O-O {[%clk 0:03:02.1]} 12. Nc3 {[%clk 0:02:46.5]} 12... f6
{[%clk 0:03:01.5]} 13. exf6 {[%clk 0:01:58.4]} 13... Bxf6 {[%clk 0:03:00.2]} 14.
Be3 {[%clk 0:01:59]} 14... Re8 {[%clk 0:02:20.6]} 15. Qd2 {[%clk 0:01:58.3]}
15... Ne4 {[%clk 0:01:54.8]} 16. Nxe4 {[%clk 0:01:52]} 16... Rxe4 {[%clk
0:01:55.7]} 17. Rae1 {[%clk 0:01:38.2]} 17... Qf8 {[%clk 0:01:25.5]} 18. Nb3
{[%clk 0:01:16.4]} 18... Rae8 {[%clk 0:01:07.1]} 19. Bxa7 {[%clk 0:01:04.9]}
19... Rxe1 {[%clk 0:00:58.3]} 20. Rxe1 {[%clk 0:01:05.8]} 20... Rxe1+ {[%clk
0:00:58.3]} 21. Qxe1 {[%clk 0:01:05.9]} 21... Bxb2 {[%clk 0:00:58.8]} 22. Qe3
{[%clk 0:00:54.1]} 22... Bf5 {[%clk 0:00:50.8]} 23. c3 {[%clk 0:00:41.7]} 23...
Be4 {[%clk 0:00:43.9]} 24. Bc5 {[%clk 0:00:38.9]} 24... Qa8 {[%clk 0:00:40.1]}
25. Ba7 {[%clk 0:00:22.1]} 25... Bxc3 {[%clk 0:00:33.1]} 26. a4 {[%clk
0:00:18.7]} 26... Bb4 {[%clk 0:00:22.1]} 27. a5 {[%clk 0:00:18.5]} 27... Qb7
{[%clk 0:00:20.5]} 28. h3 {[%clk 0:00:16.3]} 28... Bd6 {[%clk 0:00:18]} 29. Bc5
{[%clk 0:00:15.7]} 29... Bxc5 {[%clk 0:00:13.8]} 30. Nxc5 {[%clk 0:00:16.6]}
30... Qb2 {[%clk 0:00:13.9]} 31. Nxe4 {[%clk 0:00:14.9]} 31... Qb1+ {[%clk
0:00:12.5]} 32. Kf2 {[%clk 0:00:14.6]} 32... Qa2+ {[%clk 0:00:10.4]} 33. Nd2
{[%clk 0:00:14.2]} 33... h6 {[%clk 0:00:07.9]} 34. Qc3 {[%clk 0:00:12.6]} 34...
c5 {[%clk 0:00:06.5]} 35. Ke2 {[%clk 0:00:11.5]} 35... c4 {[%clk 0:00:05.6]} 36.
Qb4 {[%clk 0:00:09.7]} 36... c6 {[%clk 0:00:05.1]} 37. f5 {[%clk 0:00:08.4]}
37... Kh7 {[%clk 0:00:04.2]} 38. f6 {[%clk 0:00:08.5]} 1-0

[Event "*** Titled Tuesday Blitz"]
[Site "Chess.com"]
[Date "2020.11.10"]
[Round "10"]
[White "Igor_Lysyj"]
[Black "MokshanovAlexey"]
[Result "1/2-1/2"]
[WhiteElo "2815"]
[BlackElo "2627"]
[TimeControl "180+1"]
[EndTime "12:02:37 PST"]
[Termination "Game drawn by repetition"]

1. d4 {[%clk 0:03:00.9]} 1... d5 {[%clk 0:02:59.8]} 2. Nf3 {[%clk 0:03:00.7]}
2... Nf6 {[%clk 0:02:59.8]} 3. g3 {[%clk 0:03:01.2]} 3... e6 {[%clk 0:02:59.4]}
4. Bg2 {[%clk 0:02:59.6]} 4... Be7 {[%clk 0:02:59.9]} 5. c4 {[%clk 0:02:57.8]}
5... O-O {[%clk 0:02:59.7]} 6. O-O {[%clk 0:02:57.7]} 6... c6 {[%clk 0:02:57.4]}
7. Nc3 {[%clk 0:02:55.8]} 7... b6 {[%clk 0:02:56.3]} 8. Nd2 {[%clk 0:02:53.5]}
8... Bb7 {[%clk 0:02:49.7]} 9. e4 {[%clk 0:02:52.4]} 9... dxe4 {[%clk
0:02:43.8]} 10. Ndxe4 {[%clk 0:02:51.9]} 10... Nbd7 {[%clk 0:02:38.5]} 11. Bf4
{[%clk 0:02:47.8]} 11... Nxe4 {[%clk 0:02:34.4]} 12. Nxe4 {[%clk 0:02:47.3]}
12... Nf6 {[%clk 0:02:34.6]} 13. Qe2 {[%clk 0:02:44.9]} 13... h6 {[%clk
0:02:22.2]} 14. Rfd1 {[%clk 0:02:41.3]} 14... Nxe4 {[%clk 0:02:15.6]} 15. Bxe4
{[%clk 0:02:40.6]} 15... Bf6 {[%clk 0:01:58.3]} 16. Be5 {[%clk 0:02:38.2]} 16...
Qe7 {[%clk 0:01:57.2]} 17. Qf3 {[%clk 0:02:34.3]} 17... Rac8 {[%clk 0:01:50.7]}
18. c5 {[%clk 0:02:17.9]} 18... Bxe5 {[%clk 0:01:43.7]} 19. dxe5 {[%clk
0:02:16]} 19... Qxc5 {[%clk 0:01:44.3]} 20. Rd7 {[%clk 0:02:14.8]} 20... Ba6
{[%clk 0:01:30.1]} 21. Rxa7 {[%clk 0:02:10.1]} 21... Ra8 {[%clk 0:01:22.1]} 22.
Rxa8 {[%clk 0:01:33.1]} 22... Rxa8 {[%clk 0:01:21.8]} 23. Qf4 {[%clk 0:01:33.4]}
23... Rd8 {[%clk 0:00:58.8]} 24. Rc1 {[%clk 0:01:32.7]} 24... Qd4 {[%clk
0:00:52.6]} 25. b3 {[%clk 0:01:25.7]} 25... c5 {[%clk 0:00:50.8]} 26. h4 {[%clk
0:01:21.1]} 26... Be2 {[%clk 0:00:32.8]} 27. a4 {[%clk 0:00:59.7]} 27... Kf8
{[%clk 0:00:32.5]} 28. Re1 {[%clk 0:00:51.1]} 28... Ba6 {[%clk 0:00:31.8]} 29.
Kh2 {[%clk 0:00:46.2]} 29... Qd2 {[%clk 0:00:29.4]} 30. Re3 {[%clk 0:00:46]}
30... Rd4 {[%clk 0:00:24.8]} 31. Qf3 {[%clk 0:00:34.4]} 31... Qb2 {[%clk
0:00:18.3]} 32. Bg6 {[%clk 0:00:33.4]} 32... Rd7 {[%clk 0:00:18.3]} 33. Re4
{[%clk 0:00:31.8]} 33... Kg8 {[%clk 0:00:12.8]} 34. Bh5 {[%clk 0:00:19.9]} 34...
g6 {[%clk 0:00:12.4]} 35. Bxg6 {[%clk 0:00:16.9]} 35... fxg6 {[%clk 0:00:12.3]}
36. Qf6 {[%clk 0:00:17.1]} 36... Rg7 {[%clk 0:00:11.8]} 37. Rf4 {[%clk
0:00:14.9]} 37... Kh7 {[%clk 0:00:11.8]} 38. Qxe6 {[%clk 0:00:13.6]} 38... Bd3
{[%clk 0:00:10.7]} 39. Rf8 {[%clk 0:00:12.8]} 39... Bf5 {[%clk 0:00:10]} 40.
Rxf5 {[%clk 0:00:12.9]} 40... gxf5 {[%clk 0:00:09.7]} 41. Qxf5+ {[%clk
0:00:13.3]} 41... Kg8 {[%clk 0:00:10.3]} 42. Qc8+ {[%clk 0:00:12.4]} 42... Kh7
{[%clk 0:00:10]} 43. Qf5+ {[%clk 0:00:12.4]} 43... Kg8 {[%clk 0:00:10.4]} 44.
Qc8+ {[%clk 0:00:12.6]} 44... Kh7 {[%clk 0:00:10.7]} 45. Qf5+ {[%clk 0:00:12.6]}
1/2-1/2